fUSD/lending_fUSD_20260228
["ID","MTS","AMOUNT","RATE_DAILY","PERIOD"]
[406918353,1772275838573,-151.0,0.00013069,2]
[406918354,1772275838582,-500.0,0.00013069,2]
[406918355,1772275838591,-500.0,0.00013069,2]
[406918356,1772275838600,-151.0,0.00013069,2]
[406918357,1772275838609,-500.0,0.00013069,2]
[406918358,1772275838618,-215.18450189,0.00013069,2]
[406918359,1772275838627,-500.0,0.00013069,2]
[406918360,1772275838636,-151.0,0.00013069,2]
[406918361,1772275838645,-500.0,0.00013069,2]
[406918362,1772275838654,-500.0,0.00013069,2]
[406918363,1772275838663,-500.0,0.00013069,2]
[406918364,1772275838672,-500.0,0.00013069,2]
[406918365,1772275838681,-500.0,0.00013069,2]
[406918366,1772275838691,-500.0,0.00013069,2]
[406918367,1772275838704,-500.0,0.00013074,2]
[406918368,1772275838713,-500.0,0.00013074,2]
[406918369,1772275838723,-500.0,0.00013074,2]
[406918370,1772275838733,-169.78300591,0.00013074,2]
[406918371,1772275838743,-2958.65237322,0.00013075,2]
[406918372,1772275838753,-2958.65237322,0.00013075,2]
[406918373,1772275838762,-2958.65237322,0.00013075,2]
[406918374,1772275838774,-2958.65237322,0.00013075,2]
[406918375,1772275838784,-2958.65237322,0.00013075,2]
[406918376,1772275838794,-2958.65237322,0.00013075,2]
[406918377,1772275838804,-2958.65237322,0.00013075,2]
[406918378,1772275838813,-2958.65237322,0.00013075,2]
[406918379,1772275838823,-2958.65237322,0.00013075,2]
[406918380,1772275838832,-2958.65237322,0.00013075,2]
[406918381,1772275838842,-2958.65237322,0.00013075,2]
[406918382,1772275838851,-2958.65237322,0.00013075,2]
[406918383,1772275838861,-2958.65237322,0.00013075,2]
[406918384,1772275838871,-2958.65237322,0.00013075,2]
[406918385,1772275838880,-2958.65237322,0.00013075,2]
[406918386,1772275838889,-2958.65237322,0.00013075,2]
[406918387,1772275838899,-2958.65237322,0.00013075,2]
[406918388,1772275838908,-2958.65237322,0.00013075,2]
[406918389,1772275838918,-2958.65237322,0.00013075,2]
[406918390,1772275838927,-2958.65237322,0.00013075,2]
[406918391,1772275838936,-2958.65237322,0.00013075,2]
[406918392,1772275838946,-2958.65237322,0.00013075,2]
[406918393,1772275838955,-2958.65237322,0.00013075,2]
[406918394,1772275838964,-2958.65237322,0.00013075,2]
[406918395,1772275838973,-2958.65237322,0.00013075,2]
[406918396,1772275838983,-2958.65237322,0.00013075,2]
[406918397,1772275838992,-2958.65237322,0.00013075,2]
[406918398,1772275839002,-2958.65237322,0.00013075,2]
[406918399,1772275839010,-2958.65237322,0.00013075,2]
[406918400,1772275839020,-2958.65237322,0.00013075,2]
[406918401,1772275839029,-2958.65237322,0.00013075,2]
[406918402,1772275839039,-2958.65237322,0.00013075,2]
[406918403,1772275839048,-2958.65237322,0.00013075,2]
[406918404,1772275839056,-2958.65237322,0.00013075,2]
[406918405,1772275839066,-2958.65237322,0.00013075,2]
[406918406,1772275839075,-2958.65237322,0.00013075,2]
[406918407,1772275839084,-2958.65237322,0.00013075,2]
[406918408,1772275839093,-2958.65237322,0.00013075,2]
[406918409,1772275839102,-2958.65237322,0.00013075,2]
[406918410,1772275839112,-2958.65237322,0.00013075,2]
[406918411,1772275839122,-2958.65237322,0.00013075,2]
[406918412,1772275839131,-2958.65237322,0.00013075,2]
[406918413,1772275839140,-2958.65237322,0.00013075,2]
[406918414,1772275839149,-2958.65237322,0.00013075,2]
[406918415,1772275839158,-2958.65237322,0.00013075,2]
[406918416,1772275839168,-2958.65237322,0.00013075,2]
[406918417,1772275839177,-2958.65237322,0.00013075,2]
[406918418,1772275839186,-2958.65237322,0.00013075,2]
[406918419,1772275839195,-2958.65237322,0.00013075,2]
[406918420,1772275839204,-2958.65237322,0.00013075,2]
[406918421,1772275839213,-2958.65237322,0.00013075,2]
[406918422,1772275839223,-2958.65237322,0.00013075,2]
[406918423,1772275839232,-2958.65237322,0.00013075,2]
[406918424,1772275839241,-2958.65237322,0.00013075,2]
[406918425,1772275839251,-2958.65237322,0.00013075,2]
[406918426,1772275839260,-2958.65237322,0.00013075,2]
[406918427,1772275839270,-2958.65237322,0.00013075,2]
[406918428,1772275839279,-2958.65237322,0.00013075,2]
[406918429,1772275839288,-2958.65237322,0.00013075,2]
[406918430,1772275839297,-2958.65237322,0.00013075,2]
[406918431,1772275839307,-2958.65237322,0.00013075,2]
[406918432,1772275839316,-2958.65237322,0.00013075,2]
[406918433,1772275839326,-2958.65237322,0.00013075,2]
[406918434,1772275839335,-2860.03062744,0.00013075,2]
[406918435,1772275839344,-2860.03062744,0.00013075,2]
[406918436,1772275839353,-2860.03062744,0.00013075,2]
[406918437,1772275839362,-2860.03062744,0.00013075,2]
[406918438,1772275839373,-2860.03062744,0.00013075,2]
[406918439,1772275839382,-2860.03062744,0.00013075,2]
[406918440,1772275839392,-2860.03062744,0.00013075,2]
[406918441,1772275839402,-2860.03062744,0.00013075,2]
[406918442,1772275839411,-2860.03062744,0.00013075,2]
[406918444,1772275839421,-2860.03062744,0.00013075,2]
[406918446,1772275839431,-2860.03062744,0.00013075,2]
[406918448,1772275839440,-2860.03062744,0.00013075,2]
[406918449,1772275839450,-2860.03062744,0.00013075,2]
[406918451,1772275839459,-2860.03062744,0.00013075,2]
[406918452,1772275839468,-2860.03062744,0.00013075,2]
[406918453,1772275839477,-2860.03062744,0.00013075,2]
[406918454,1772275839486,-2860.03062744,0.00013075,2]
[406918455,1772275839495,-2860.03062744,0.00013075,2]
[406918456,1772275839504,-2860.03062744,0.00013075,2]
[406918457,1772275839514,-2860.03062744,0.00013075,2]
[406918458,1772275839523,-2860.03062744,0.00013075,2]
[406918459,1772275839532,-2860.03062744,0.00013075,2]
[406918460,1772275839542,-2860.03062744,0.00013075,2]
[406918462,1772275839551,-2860.03062744,0.00013075,2]
[406918463,1772275839560,-2860.03062744,0.00013075,2]
[406918464,1772275839569,-2860.03062744,0.00013075,2]
[406918465,1772275839578,-2860.03062744,0.00013075,2]
[406918466,1772275839588,-4290.04594113,0.00013075,2]
[406918467,1772275839597,-98869.5154,0.00013077,2]
[406918468,1772275839607,-1000.0,0.00013077,2]
[406918469,1772275839616,-14065.3244,0.00013077,2]
[406918470,1772275839626,-100000.0,0.000131,2]
[406918471,1772275839636,-1680.0,0.00013121,2]
[406918472,1772275839645,-166.66,0.00013248,2]
[406918473,1772275839655,-3240.0,0.00013425,2]
[406918474,1772275839664,-2500.0,0.00013463,2]
[406918475,1772275839674,-500.0,0.00013463,2]
[406918476,1772275839683,-4740.73550244,0.00013463,2]
[406918477,1772275839694,-250.0,0.00013463,2]
[406918478,1772275839704,-300.0,0.00013463,2]
[406918479,1772275839713,-2500.0,0.00013463,2]
[406918480,1772275839722,-288.1281186,0.00013642,2]
[406918481,1772275839731,-72078.4631738,0.0001366,2]
[406918482,1772275839742,-5967.861501,0.00013665,2]
[406918483,1772275839751,-1860.0334012,0.00013665,2]
[406918484,1772275839761,-151.0,0.00013666,2]
[406918485,1772275839774,-269526.8528912,0.00013669,2]
[406918486,1772275839783,-14599.5540971,0.00013669,2]
[406918487,1772275839792,-3160.0000001,0.00013669,2]
[406918488,1772275839802,-20861.7356457,0.00013669,2]
[406918489,1772275839811,-500.0,0.00013698,2]
[406918490,1772275839820,-500.0,0.00013698,2]
[406918491,1772275839830,-500.0,0.00013698,2]
[406918492,1772275839840,-500.0,0.00013698,2]
[406918493,1772275839850,-270.1160722,0.00013698,2]
[406918494,1772275839860,-500.0,0.00013698,2]
[406918495,1772275839870,-500.0,0.00013698,2]
[406918496,1772275839879,-500.0,0.00013698,2]
[406918497,1772275839889,-500.0,0.00013698,2]
[406918498,1772275839899,-500.0,0.00013698,2]
[406918499,1772275839908,-500.0,0.00013698,2]
[406918500,1772275839918,-500.0,0.00013698,2]
[406918501,1772275839927,-500.0,0.00013698,2]
[406918502,1772275839938,-500.0,0.00013698,2]
[406918503,1772275839948,-500.0,0.00013698,2]
[406918504,1772275839957,-500.0,0.00013698,2]
[406918505,1772275839968,-500.0,0.00013698,2]
[406918506,1772275839979,-500.0,0.00013698,2]
[406918507,1772275839989,-500.0,0.00013698,2]
[406918508,1772275839999,-500.0,0.00013698,2]
[406918509,1772275840009,-500.0,0.00013698,2]
[406918510,1772275840019,-500.0,0.00013698,2]
[406918511,1772275840030,-500.0,0.00013698,2]
[406918512,1772275840040,-500.0,0.00013698,2]
[406918513,1772275840050,-500.0,0.00013698,2]
[406918514,1772275840060,-500.0,0.00013698,2]
[406918515,1772275840071,-500.0,0.00013698,2]
[406918516,1772275840080,-500.0,0.00013698,2]
[406918517,1772275840090,-500.0,0.00013698,2]
[406918518,1772275840100,-500.0,0.00013698,2]
[406918519,1772275840110,-500.0,0.00013698,2]
[406918520,1772275840119,-500.0,0.00013698,2]
[406918521,1772275840129,-500.0,0.00013698,2]
[406918522,1772275840139,-500.0,0.00013698,2]
[406918523,1772275840149,-500.0,0.00013698,2]
[406918524,1772275840159,-500.0,0.00013698,2]
[406918525,1772275840169,-500.0,0.00013698,2]
[406918526,1772275840179,-500.0,0.00013698,2]
[406918527,1772275840189,-500.0,0.00013698,2]
[406918528,1772275840200,-500.0,0.00013698,2]
[406918529,1772275840209,-500.0,0.00013698,2]
[406918530,1772275840219,-500.0,0.00013698,2]
[406918531,1772275840229,-500.0,0.00013698,2]
[406918532,1772275840239,-500.0,0.00013698,2]
[406918533,1772275840249,-500.0,0.00013698,2]
[406918534,1772275840259,-500.0,0.00013698,2]
[406918535,1772275840269,-440.49444221,0.00013698,2]
[406918536,1772275840280,-500.0,0.00013698,2]
[406918537,1772275840291,-500.0,0.00013698,2]
[406918538,1772275840300,-500.0,0.00013698,2]
[406918539,1772275840311,-500.0,0.00013698,2]
[406918540,1772275840322,-500.0,0.00013698,2]
[406918541,1772275840332,-500.0,0.00013698,2]
[406918542,1772275840342,-500.0,0.00013698,2]
[406918543,1772275840353,-500.0,0.00013698,2]
[406918544,1772275840363,-500.0,0.00013698,2]
[406918545,1772275840374,-500.0,0.00013698,2]
[406918546,1772275840384,-500.0,0.00013698,2]
[406918547,1772275840395,-508.5684283,0.00013698,2]
[406918549,1772275840405,-500.0,0.00013698,2]
[406918551,1772275840415,-500.0,0.00013698,2]
[406918553,1772275840426,-500.0,0.00013698,2]
[406918555,1772275840439,-500.0,0.00013698,2]
[406918557,1772275840449,-500.0,0.00013698,2]
[406918559,1772275840459,-500.0,0.00013698,2]
[406918561,1772275840468,-500.0,0.00013698,2]
[406918563,1772275840478,-500.0,0.00013698,2]
[406918565,1772275840488,-500.0,0.00013698,2]
[406918567,1772275840498,-500.0,0.00013698,2]
[406918569,1772275840507,-500.0,0.00013698,2]
[406918571,1772275840517,-767.34,0.00013698,2]
[406918573,1772275840526,-767.34,0.00013698,2]
[406918575,1772275840536,-767.34,0.00013698,2]
[406918577,1772275840545,-767.34,0.00013698,2]
[406918579,1772275840555,-767.34,0.00013698,2]
[406918581,1772275840566,-767.34,0.00013698,2]
[406918583,1772275840575,-767.34,0.00013698,2]
[406918585,1772275840585,-767.34,0.00013698,2]
[406918587,1772275840594,-767.34,0.00013698,2]
[406918589,1772275840603,-767.34,0.00013698,2]
[406918591,1772275840613,-767.34,0.00013698,2]
[406918593,1772275840624,-843.23,0.00013699,2]
[406918595,1772275840633,-255.0,0.00013804,2]
[406918597,1772275840643,-500.0,0.00013908,2]
[406918599,1772275840652,-500.0,0.00013908,2]
[406918601,1772275840663,-500.0,0.00013908,2]
[406918603,1772275840672,-500.0,0.00013908,2]
[406918605,1772275840682,-279.65230115,0.00013908,2]
[406918607,1772275840692,-164.35592024,0.00013908,2]
[406918608,1772275840704,-163.84904206,0.00013908,2]
[406918610,1772275840713,-500.0,0.00013908,2]
[406918612,1772275840724,-621.2419277,0.00013908,2]
[406918614,1772275840735,-500.0,0.00013908,2]
[406918616,1772275840748,-500.0,0.00013908,2]
[406918618,1772275840758,-524.57437487,0.00013908,2]
[406918621,1772275840770,-162.16281507,0.00013908,2]
[406918623,1772275840780,-500.0,0.00013908,2]
[406918625,1772275840789,-500.0,0.00013908,2]
[406918626,1772275840799,-500.0,0.00013908,2]
[406918628,1772275840809,-500.0,0.00013908,2]
[406918630,1772275840817,-500.0,0.00013908,2]
[406918632,1772275840827,-500.0,0.00013908,2]
[406918634,1772275840836,-500.0,0.00013908,2]
[406918636,1772275840846,-500.0,0.00013908,2]
[406918638,1772275840856,-500.0,0.00013908,2]
[406918639,1772275840864,-500.0,0.00013908,2]
[406918640,1772275840873,-500.0,0.00013908,2]
[406918641,1772275840882,-164.07470798,0.00013908,2]
[406918642,1772275840891,-160.97258953,0.00013908,2]
[406918643,1772275840899,-500.0,0.00013908,2]
[406918644,1772275840908,-500.0,0.00013908,2]
[406918645,1772275840917,-500.0,0.00013908,2]
[406918646,1772275840925,-500.0,0.00013908,2]
[406918647,1772275840935,-500.0,0.00013908,2]
[406918648,1772275840944,-500.0,0.00013908,2]
[406918649,1772275840952,-161.20397096,0.00013908,2]
[406918650,1772275840961,-500.0,0.00013908,2]
[406918651,1772275840970,-500.0,0.00013908,2]
[406918652,1772275840978,-500.0,0.00013908,2]
[406918653,1772275840987,-500.0,0.00013908,2]
[406918654,1772275840996,-500.0,0.00013908,2]
[406918655,1772275841005,-335.80836064,0.00013908,2]
[406918656,1772275841013,-500.0,0.00013908,2]
[406918657,1772275841022,-500.0,0.00013908,2]
[406918658,1772275841031,-500.0,0.00013908,2]
[406918659,1772275841040,-308.79336882,0.00013908,2]
[406918661,1772275841049,-500.0,0.00013908,2]
[406918662,1772275841058,-500.0,0.00013908,2]
[406918664,1772275841067,-160.28869668,0.00013908,2]
[406918666,1772275841076,-500.0,0.00013908,2]
[406918668,1772275841085,-500.0,0.00013908,2]
[406918670,1772275841094,-500.0,0.00013908,2]
[406918672,1772275841104,-500.0,0.00013908,2]
[406918674,1772275841113,-500.0,0.00013908,2]
[406918676,1772275841123,-500.0,0.00013908,2]
[406918678,1772275841133,-209.76903842,0.00013908,2]
[406918680,1772275841142,-337.91550103,0.00013908,2]
[406918682,1772275841151,-500.0,0.00013908,2]
[406918684,1772275841161,-500.0,0.00013908,2]
[406918686,1772275841170,-500.0,0.00013908,2]
[406918688,1772275841179,-500.0,0.00013908,2]
[406918690,1772275841188,-500.0,0.00013908,2]
[406918692,1772275841197,-500.0,0.00013908,2]
[406918693,1772275841206,-500.0,0.00013908,2]
[406918696,1772275841217,-310.96112452,0.00013908,2]
[406918697,1772275841225,-500.0,0.00013908,2]
[406918699,1772275841235,-500.0,0.00013908,2]
[406918701,1772275841244,-500.0,0.00013908,2]
[406918703,1772275841256,-511.0,0.0001411,2]
[406918705,1772275841265,-10000.0,0.00014284,2]
[406918707,1772275841275,-2351.0,0.00014433,2]
[406918709,1772275841285,-1000.0,0.00014456,2]
[406918711,1772275841295,-1009.56822593,0.00014456,2]
[406918713,1772275841305,-1000.0,0.00014456,2]
[406918715,1772275841314,-1000.0,0.00014456,2]
[406918717,1772275841324,-1000.0,0.00014456,2]
[406918719,1772275841332,-380.87372073,0.00014456,2]
[406918721,1772275841342,-1001.25349418,0.00014456,2]
[406918723,1772275841352,-1000.0,0.00014456,2]
[406918725,1772275841361,-352.15203675,0.00014456,2]
[406918727,1772275841372,-1000.0,0.00014456,2]
[406918729,1772275841381,-1000.0,0.00014456,2]
[406918736,1772275841512,-1000.0,0.00014456,2]
[406918737,1772275841522,-1000.0,0.00014456,2]
[406918738,1772275841532,-1000.0,0.00014456,2]
[406918739,1772275841541,-1000.0,0.00014456,2]
[406918740,1772275841550,-1000.0,0.00014456,2]
[406918741,1772275841559,-185.91789535,0.00014456,2]
[406918742,1772275841569,-1000.0,0.00014456,2]
[406918743,1772275841579,-468.68636614,0.00014456,2]
[406918744,1772275841588,-1000.0,0.00014456,2]
[406918745,1772275841597,-993.55181504,0.00014456,2]
[406918746,1772275841606,-1004.03248552,0.00014456,2]
[406918747,1772275841616,-1000.0,0.00014456,2]
[406918748,1772275841626,-1000.0,0.00014456,2]
[406918749,1772275841635,-1000.0,0.00014456,2]
[406918750,1772275841644,-1010.19433144,0.00014456,2]
[406918751,1772275841654,-1000.0,0.00014456,2]
[406918752,1772275841663,-1000.0,0.00014456,2]
[406918753,1772275841671,-1000.0,0.00014456,2]
[406918754,1772275841681,-176.28801878,0.00014456,2]
[406918755,1772275841690,-604.79723351,0.00014456,2]
[406918756,1772275841703,-1000.0,0.00014456,2]
[406918757,1772275841715,-1000.0,0.00014456,2]
[406918758,1772275841724,-1000.0,0.00014456,2]
[406918759,1772275841733,-1000.0,0.00014456,2]
[406918760,1772275841743,-503.10076377,0.00014456,2]
[406918761,1772275841752,-1000.0,0.00014456,2]
[406918762,1772275841761,-1000.0,0.00014456,2]
[406918763,1772275841772,-1000.0,0.00014456,2]
[406918764,1772275841781,-882.9763382,0.00014456,2]
[406918765,1772275841790,-1000.0,0.00014456,2]
[406918766,1772275841799,-1000.0,0.00014456,2]
[406918767,1772275841808,-1000.0,0.00014456,2]
[406918768,1772275841817,-1000.0,0.00014456,2]
[406918769,1772275841827,-1000.0,0.00014456,2]
[406918770,1772275841836,-1000.0,0.00014456,2]
[406918771,1772275841845,-1000.0,0.00014456,2]
[406918772,1772275841855,-1000.0,0.00014456,2]
[406918773,1772275841864,-501.70249257,0.00014456,2]
[406918774,1772275841874,-1000.0,0.00014456,2]
[406918775,1772275841884,-1600.0,0.00014468,2]
[406918776,1772275841895,-151.0,0.00014634,2]
[406918777,1772275841904,-169.43046209,0.000149,2]
[406918778,1772275841913,-169.43046209,0.000149,2]
[406918779,1772275841922,-1093.78241863,0.00015004,2]
[406918780,1772275841936,-1508.05702942,0.00015004,2]
[406918781,1772275841945,-1500.0,0.00015004,2]
[406918782,1772275841955,-1500.0,0.00015004,2]
[406918783,1772275841964,-1500.0,0.00015004,2]
[406918784,1772275841973,-1500.0,0.00015004,2]
[406918785,1772275841983,-1500.0,0.00015004,2]
[406918786,1772275841992,-289.52830744,0.00015004,2]
[406918787,1772275842001,-1500.0,0.00015004,2]
[406918788,1772275842011,-1500.0,0.00015004,2]
[406918789,1772275842020,-1014.6582369,0.00015004,2]
[406918790,1772275842029,-1500.0,0.00015004,2]
[406918791,1772275842038,-503.90241085,0.00015004,2]
[406918792,1772275842048,-1500.0,0.00015004,2]
[406918793,1772275842056,-1500.0,0.00015004,2]
[406918794,1772275842066,-1500.0,0.00015004,2]
[406918795,1772275842075,-1500.0,0.00015004,2]
[406918796,1772275842084,-1217.87177273,0.00015004,2]
[406918797,1772275842093,-1510.16686171,0.00015004,2]
[406918798,1772275842102,-1500.0,0.00015004,2]
[406918799,1772275842111,-1500.0,0.00015004,2]
[406918800,1772275842121,-1500.0,0.00015004,2]
[406918801,1772275842129,-1011.98217898,0.00015004,2]
[406918802,1772275842139,-1508.78545051,0.00015004,2]
[406918803,1772275842148,-1500.0,0.00015004,2]
[406918804,1772275842156,-1500.0,0.00015004,2]
[406918805,1772275842166,-1500.0,0.00015004,2]
[406918806,1772275842175,-1500.0,0.00015004,2]
[406918807,1772275842185,-1500.0,0.00015004,2]
[406918808,1772275842194,-1500.0,0.00015004,2]
[406918809,1772275842203,-504.49415487,0.00015004,2]
[406918810,1772275842212,-506.55258231,0.00015004,2]
[406918811,1772275842222,-1500.0,0.00015004,2]
[406918812,1772275842231,-1500.0,0.00015004,2]
[406918813,1772275842241,-1500.0,0.00015004,2]
[406918814,1772275842250,-1500.0,0.00015004,2]
[406918815,1772275842259,-433.0,0.0001501,2]
[406918816,1772275842268,-200.0,0.00015432,2]
[406918817,1772275842278,-2097.91,0.00015471,2]
[406918818,1772275842288,-2000.0,0.00015552,2]
[406918819,1772275842297,-2000.0,0.00015552,2]
[406918820,1772275842307,-1146.84360097,0.00015552,2]
[406918821,1772275842317,-1932.25528949,0.00015552,2]
[406918822,1772275842326,-2000.0,0.00015552,2]
[406918823,1772275842335,-2000.0,0.00015552,2]
[406918824,1772275842345,-1437.54577261,0.00015552,2]
[406918825,1772275842354,-529.02288049,0.00015552,2]
[406918826,1772275842363,-1718.82282533,0.00015552,2]
[406918827,1772275842373,-2000.0,0.00015552,2]
[406918828,1772275842382,-1513.9298778,0.00015552,2]
[406918829,1772275842392,-1150.13473928,0.00015552,2]
[406918830,1772275842401,-2000.0,0.00015552,2]
[406918831,1772275842411,-2000.0,0.00015552,2]
[406918832,1772275842420,-1706.92723051,0.00015552,2]
[406918833,1772275842429,-2000.0,0.00015552,2]
[406918834,1772275842439,-2000.0,0.00015552,2]
[406918835,1772275842449,-2041.26009197,0.00015552,2]
[406918836,1772275842459,-2000.0,0.00015552,2]
[406918837,1772275842468,-2000.0,0.00015552,2]
[406918838,1772275842477,-2000.0,0.00015552,2]
[406918839,1772275842487,-2000.0,0.00015552,2]
[406918840,1772275842496,-2000.0,0.00015552,2]
[406918841,1772275842506,-743.29162459,0.00015552,2]
[406918842,1772275842516,-2000.0,0.00015552,2]
[406918843,1772275842526,-16082.8790312,0.00015712,2]
[406918844,1772275842536,-4654.8824156,0.00015724,2]
[406918845,1772275842547,-250.0,0.00015762,2]
[406918846,1772275842556,-2808.0,0.00015876,2]
[406918847,1772275842565,-150.0,0.000159,2]
[406918848,1772275842575,-150.0,0.000159,2]
[406918849,1772275842584,-150.0,0.000159,2]
[406918850,1772275842593,-150.0,0.000159,2]
[406918851,1772275842603,-500.0,0.00015967,2]
[406918852,1772275842612,-500.0,0.00015967,2]
[406918853,1772275842623,-767.34,0.00015967,2]
[406918854,1772275842632,-16303.16,0.00015968,2]
[406918855,1772275842641,-1600.0,0.00016076,2]
[406918856,1772275842651,-2212.37829793,0.00016099,2]
[406918857,1772275842660,-1019.35272173,0.00016099,2]
[406918858,1772275842669,-2500.0,0.00016099,2]
[406918859,1772275842678,-1015.31004766,0.00016099,2]
[406918860,1772275842688,-2500.0,0.00016099,2]
[406918861,1772275842703,-2500.0,0.00016099,2]
[406918862,1772275842712,-2500.0,0.00016099,2]
[406918863,1772275842721,-2500.0,0.00016099,2]
[406918864,1772275842730,-2500.0,0.00016099,2]
[406918865,1772275842743,-500.0,0.00016099,2]
[406918866,1772275842752,-2500.0,0.00016099,2]
[406918867,1772275842761,-1009.53925467,0.00016099,2]
[406918868,1772275842772,-2526.23779749,0.00016099,2]
[406918869,1772275842782,-1118.86499239,0.00016099,2]
[406918870,1772275842792,-703.36470484,0.00016099,2]
[406918871,1772275842801,-500.0,0.00016114,2]
[406918872,1772275842811,-500.0,0.00016114,2]
[406918873,1772275842820,-500.0,0.00016114,2]
[406918874,1772275842829,-500.0,0.00016114,2]
[406918875,1772275842839,-60139.5698499,0.00016115,2]
[406918876,1772275842848,-3257.6008437,0.00016115,2]
[406918877,1772275842857,-9999.99,0.00016116,2]
[406918878,1772275842866,-3588.5753738,0.0001617,2]
[406918879,1772275842879,-9030.08416486,0.00016177,2]
[406918880,1772275842887,-1038.6446588,0.00016182,2]
[406918881,1772275842897,-16655.52462085,0.00016229,2]
[406918882,1772275842907,-736.0,0.00016306,2]
[406918883,1772275842916,-174.04581251,0.00016376,2]
[406918884,1772275842926,-266.81662109,0.00016438,2]
[406918885,1772275842935,-3000.0,0.00016647,2]
[406918886,1772275842944,-501.57340438,0.00016647,2]
[406918887,1772275842953,-1032.89246011,0.00016647,2]
[406918888,1772275842963,-2990.28139264,0.00016647,2]
[406918889,1772275842972,-1050.78546123,0.00016647,2]
[406918890,1772275842981,-1279.13777388,0.00016647,2]
[406918891,1772275842991,-3000.0,0.00016647,2]
[406918892,1772275843000,-13418.9518518,0.0001666,2]
[406918893,1772275843009,-726.8689979,0.0001666,2]
[406918894,1772275843019,-167.1,0.00016712,2]
[406918895,1772275843029,-168.0,0.00016755,2]
[406918896,1772275843038,-2000.0,0.0001681,2]
[406918897,1772275843047,-1331.6098924,0.00016812,2]
[406918898,1772275843056,-168.0,0.00016871,2]
[406918899,1772275843066,-168.0,0.00016898,2]
[406918900,1772275843075,-168.0,0.00016899,2]
[406918901,1772275843084,-2000.0,0.0001691,2]
[406918902,1772275843093,-3885.43,0.0001692,2]
[406918903,1772275843103,-308.99,0.00016943,2]
[406918904,1772275843112,-2000.0,0.0001701,2]
[406918905,1772275843123,-168.0,0.00017077,2]
[406918906,1772275843132,-168.0,0.00017086,2]
[406918907,1772275843142,-2000.0,0.000171,2]
[406918908,1772275843151,-1500.0,0.0001711,2]
[406918909,1772275843160,-1500.0,0.0001711,2]
[406918910,1772275843169,-2632.101218,0.0001711,2]
[406918911,1772275843178,-171.1192,0.0001711,2]
[406918912,1772275843187,-171.1192,0.0001711,2]
[406918913,1772275843196,-171.1192,0.0001711,2]
[406918914,1772275843206,-171.1192,0.0001711,2]
[406918915,1772275843215,-171.1192,0.0001711,2]
[406918916,1772275843224,-171.1192,0.0001711,2]
[406918917,1772275843233,-168.0,0.00017183,2]
[406918918,1772275843243,-798.53948142,0.00017195,2]
[406918919,1772275843252,-3500.0,0.00017195,2]
[406918920,1772275843261,-168.0,0.00017285,2]
[406918921,1772275843271,-156.74932774,0.00017322,2]
[406918922,1772275843281,-269.917619,0.00017322,2]
[406918923,1772275843290,-151.0,0.00017322,2]
[406918924,1772275843299,-174.61919141,0.00017322,2]
[406918925,1772275843309,-500.0,0.00017322,2]
[406918926,1772275843318,-500.0,0.00017322,2]
[406918927,1772275843328,-500.0,0.00017322,2]
[406918928,1772275843337,-500.0,0.00017322,2]
[406918929,1772275843346,-500.0,0.00017322,2]
[406918930,1772275843355,-500.0,0.00017322,2]
[406918931,1772275843364,-500.0,0.00017322,2]
[406918932,1772275843375,-500.0,0.00017322,2]
[406918933,1772275843385,-500.0,0.00017322,2]
[406918934,1772275843394,-500.0,0.00017322,2]
[406918935,1772275843404,-500.0,0.00017322,2]
[406918936,1772275843413,-500.0,0.00017322,2]
[406918937,1772275843422,-668.65185757,0.00017322,2]
[406918938,1772275843431,-267.46074303,0.00017322,2]
[406918939,1772275843441,-151.0,0.00017377,2]
[406918940,1772275843450,-693.3919763,0.00017377,2]
[406918941,1772275843461,-151.0,0.00017432,2]
[406918942,1772275843470,-719.04747942,0.00017432,2]